Workbook

Sheet Valoración Bono
B1: Valoración de un bono de renta fija | J1: www.economipedia.com
B3: ESPECIFICACIONES DEL BONO | F3: ANÁLISIS DE SENSIBILIDAD DE UN BONO
B4: Fecha valor | C4: =+TODAY() -> 2015-06-25
B5: Fecha vencimiento | C5: =+EDATE(C4,120) -> 2025-06-25 | D5: =+(C5-C4)/365 -> 10.00821918 | E5: años | G5: Valoración
B6: Nominal | C6: 100000 | G6: Duración | H6: =SUM(G16:G25) -> 8.311221093
B7: Cupón anual | C7: 0.05 | G7: Duración modificada | H7: =(H6/(1+H9))/100 -> 0.08101613247
B8: Precio | C8: 1.21 | G8: RISK-Sensibilidad | H8: =(+H7*F26) -> 0.09802968347
G9: TIR | H9: 0.02587235897
B11: Cálculos a realizar | H11: Teoría
H13: ¿Qué significa renta fija?
B14: Fechas | C14: Dias | D14: Años | E14: Flujos | F14: VP Flujos | G14: VP (F) X Años | H14: ¿Qué es un bono?
B15: =+C4 -> 2015-06-25 | H15: Duración de un bono
B16: =+EDATE(B15,12) -> 2016-06-25 | C16: =B16-$B$15 -> 366 | D16: =C16/365 -> 1.002739726 | E16: =+C7 -> 0.05 | F16: =E16/(1+$H$9)^D16 -> 0.0487355962 | G16: =(F16*D16)/$F$26 -> 0.04038763391 | H16: Diferencia entre bono y acción
B17: =+EDATE(B16,12) -> 2017-06-25 | C17: 731 | D17: =C17/365 -> 2.002739726 | E17: =+E16 -> 0.05 | F17: 0.0475064912 | G17: =(F17*D17)/$F$26 -> 0.07863056099 | H17: Bono basura
B18: 2018-06-25 | C18: 1096 | D18: 3.002739726 | E18: 0.05 | F18: 0.04630838407 | G18: 0.1149188372 | H18: Tipos de deuda
B19: 2019-06-25 | C19: =B19-$B$15 -> 1461 | D19: 4.002739726 | E19: 0.05 | F19: 0.04514049303 | G19: 0.1493267305
B20: 2020-06-25 | C20: 1827 | D20: 5.005479452 | E20: 0.05 | F20: 0.04399897681 | G20: 0.1820128989
B21: 2021-06-25 | C21: 2192 | D21: 6.005479452 | E21: 0.05 | F21: 0.0428893287 | G21: 0.212868226
B22: 2022-06-25 | C22: 2557 | D22: 7.005479452 | E22: 0.05 | F22: 0.04180766576 | G22: =(F22*D22)/$F$26 -> 0.2420514512
B23: 2023-06-25 | C23: 2922 | D23: 8.005479452 | E23: 0.05 | F23: 0.04075328222 | G23: 0.2696272895
B24: 2024-06-25 | C24: 3288 | D24: 9.008219178 | E24: 0.05 | F24: 0.03972271012 | G24: 0.295727507
B25: 2025-06-25 | C25: 3653 | D25: 10.00821918 | E25: =+E16+100% -> 1.05 | F25: 0.8131390861 | G25: 6.725669958
F26: =SUM(F16:F25) -> 1.210002014 | G26: =SUM(G16:G25) -> 8.311221093
